bitfinex/quotes_BTCUSD_20230103
["timestamp","ask_amount","ask_price","bid_price","bid_amount"]
[1672777380773,1.72332691,16671.0,16670.0,0.22718926]
[1672777381537,2.32317091,16671.0,16670.0,0.22718926]
[1672777382258,1.72332691,16671.0,16670.0,0.22718926]
[1672777382762,2.32317091,16671.0,16670.0,0.22718926]
[1672777383014,1.72332691,16671.0,16670.0,0.22718926]
[1672777384008,1.72332691,16671.0,16670.0,0.43134126]
[1672777384485,1.12348291,16671.0,16670.0,0.43134126]
[1672777384713,1.72332691,16671.0,16670.0,0.43134126]
[1672777384960,1.72332691,16671.0,16670.0,0.66256052]
[1672777385209,1.72332691,16671.0,16670.0,0.22712684]
[1672777385458,1.12348291,16671.0,16670.0,0.43127884]
[1672777386032,1.12348291,16671.0,16670.0,0.8666501]
[1672777386288,0.58398117,16671.0,16670.0,0.8666501]
[1672777387527,0.58398117,16671.0,16670.0,0.43127884]
[1672777387777,1.12348291,16671.0,16670.0,0.43127884]
[1672777388680,1.12348291,16671.0,16670.0,0.22712684]
[1672777389644,1.54729848,16671.0,16670.0,0.22712684]
[1672777389900,2.74698648,16671.0,16670.0,0.22712684]
[1672777390659,2.74698648,16671.0,16670.0,0.40692684]
[1672777392081,2.20748474,16671.0,16670.0,0.40692684]
[1672777392333,2.74783128,16671.0,16670.0,0.40692684]
[1672777394435,2.32401571,16671.0,16670.0,0.40692684]
[1672777394662,2.32401571,16671.0,16670.0,0.61107884]
[1672777395143,2.32401571,16671.0,16670.0,0.40692684]
[1672777395642,2.6952675,16671.0,16670.0,0.40692684]
[1672777396419,2.32401571,16671.0,16670.0,0.40692684]
[1672777396682,1.72417171,16671.0,16670.0,1.0464501]
[1672777396907,0.58398117,16671.0,16670.0,1.0464501]
[1672777401130,1.18382517,16671.0,16670.0,1.0464501]
[1672777401364,0.5839182,16671.0,16670.0,1.0464501]
[1672777401581,1.1837622,16671.0,16670.0,1.0464501]
[1672777401826,2.32395274,16671.0,16670.0,0.61107884]
[1672777402074,1.72410874,16671.0,16670.0,0.40692684]
[1672777404397,1.72410874,16671.0,16670.0,0.61107884]
[1672777405422,2.32395274,16671.0,16670.0,0.61107884]
[1672777405688,2.32395274,16671.0,16670.0,0.40692684]
[1672777405929,1.72410874,16671.0,16670.0,0.40692684]
[1672777406650,1.72410874,16671.0,16670.0,0.61107884]
[1672777407649,1.72410874,16671.0,16670.0,0.40692684]
[1672777408403,2.15948,16671.0,16670.0,0.40692684]
[1672777408934,2.759324,16671.0,16670.0,0.40692684]
[1672777409993,2.32395274,16671.0,16670.0,0.40692684]
[1672777411285,2.759324,16671.0,16670.0,0.40692684]
[1672777413496,2.83547146,16671.0,16670.0,0.3625568]
[1672777413747,2.81882146,16671.0,16670.0,0.3625568]
[1672777414001,3.43531546,16671.0,16670.0,0.1827568]
[1672777414257,2.81882146,16671.0,16670.0,0.1827568]
[1672777414507,3.35907899,16671.0,16670.0,0.1827568]
[1672777414754,2.75923363,16671.0,16670.0,0.1827568]
[1672777415006,3.35907768,16671.0,16670.0,0.1827568]
[1672777415252,2.30925251,16671.0,16670.0,0.1827568]
[1672777417992,1.76899629,16671.0,16670.0,0.1827568]
[1672777418236,2.3091944,16671.0,16670.0,0.2305389]
[1672777420590,2.3091944,16671.0,16670.0,0.0507389]
[1672777423976,1.76899629,16671.0,16670.0,0.0029568]
[1672777424656,1.76899629,16671.0,16670.0,0.00286374]
[1672777425152,2.36884029,16671.0,16670.0,0.00286374]
[1672777425408,1.76899629,16671.0,16670.0,0.00286374]
[1672777425898,2.30910202,16671.0,16670.0,0.00286374]
[1672777428587,2.90894602,16671.0,16670.0,0.00286374]
[1672777428846,1.76899629,16671.0,16670.0,0.00286374]
[1672777431209,2.30908846,16671.0,16670.0,0.00286374]
[1672777432468,2.30908846,16671.0,16670.0,0.04536951]
[1672777432720,1.70924446,16671.0,16670.0,0.04536951]
[1672777432987,1.2738732,16671.0,16670.0,0.24952151]
[1672777433239,1.70924446,16671.0,16670.0,0.24952151]
[1672777433483,2.30908846,16671.0,16670.0,0.04536951]
[1672777433961,1.8737172,16671.0,16670.0,0.04536951]
[1672777434233,2.30908846,16671.0,16670.0,0.04536951]
[1672777435701,2.90893246,16671.0,16670.0,0.04536951]
[1672777436193,2.30908846,16671.0,16670.0,0.04536951]
[1672777437203,1.70924446,16671.0,16670.0,0.04536951]
[1672777437934,2.30908846,16671.0,16670.0,0.04536951]
[1672777439671,1.8737172,16671.0,16670.0,0.04536951]
[1672777439923,1.8737172,16671.0,16670.0,0.24952151]
[1672777440178,1.8737172,16671.0,16670.0,0.04536951]
[1672777440388,1.8737172,16671.0,16670.0,0.24952151]
[1672777440633,1.2738732,16671.0,16670.0,0.42932151]
[1672777441129,1.70924446,16671.0,16670.0,0.22516951]
[1672777441391,2.30908846,16671.0,16670.0,0.22516951]
[1672777442631,2.30908846,16671.0,16670.0,0.18266374]
[1672777442873,2.38549029,16671.0,16670.0,0.18266374]
[1672777443149,2.36884029,16671.0,16670.0,0.18266374]
[1672777443655,3.59263918,16671.0,16670.0,0.18266374]
[1672777443918,2.36884029,16671.0,16670.0,0.18266374]
[1672777444177,3.70991223,16671.0,16670.0,0.00286374]
[1672777444437,4.32640623,16671.0,16670.0,0.00286374]
[1672777444706,4.32687337,16671.0,16670.0,0.00286374]
[1672777444967,3.71910134,16671.0,16670.0,0.00286374]
[1672777445817,4.32670253,16671.0,16670.0,0.00286374]
[1672777446272,4.32670253,16671.0,16670.0,0.00277503]
[1672777446519,4.32670253,16671.0,16670.0,0.00305036]
[1672777446772,4.32670253,16671.0,16670.0,0.00277503]
[1672777447029,3.71020853,16671.0,16670.0,0.00277503]
[1672777447275,4.32670253,16671.0,16670.0,0.00277503]
[1672777447528,3.72685853,16671.0,16670.0,0.00277503]
[1672777447790,3.71020853,16671.0,16670.0,0.00277503]
[1672777448034,4.32670253,16671.0,16670.0,0.00277503]
[1672777448536,3.71020853,16671.0,16670.0,0.00277503]
[1672777449034,3.10260734,16671.0,16670.0,0.00277503]
[1672777449283,3.71020853,16671.0,16670.0,0.00277503]
[1672777449537,3.10260734,16671.0,16670.0,0.00277503]
[1672777450293,3.10250132,16671.0,16670.0,0.00277503]
[1672777450806,2.50265732,16671.0,16670.0,0.00277503]
[1672777451556,3.10250132,16671.0,16670.0,0.00277503]
[1672777453128,2.50265732,16671.0,16670.0,0.00277503]
[1672777453369,3.10250132,16671.0,16670.0,0.00277503]
[1672777454374,3.71010251,16671.0,16670.0,0.00277503]
[1672777455905,3.10250132,16671.0,16670.0,0.00277503]
[1672777456163,2.50265732,16671.0,16670.0,0.00277503]
[1672777457553,3.10250132,16671.0,16670.0,0.00277503]
[1672777458594,2.50265732,16671.0,16670.0,0.00277503]
[1672777459375,3.04264912,16671.0,16670.0,0.00277503]
[1672777460194,3.10250132,16671.0,16670.0,0.00277503]
[1672777461872,2.50265732,16671.0,16670.0,0.05144094]
[1672777462126,3.04267212,16671.0,16670.0,0.05144094]
[1672777464892,3.04267212,16671.0,16670.0,0.00277503]
[1672777465344,3.10250132,16671.0,16670.0,0.00277503]
[1672777466507,2.50265732,16671.0,16670.0,0.00277503]
[1672777466960,3.10250132,16671.0,16670.0,0.00277503]
[1672777467930,2.50265732,16671.0,16670.0,0.00277503]
[1672777468172,3.10250132,16671.0,16670.0,0.00277503]
[1672777468913,2.50265732,16671.0,16670.0,0.00277503]
[1672777469413,3.10250132,16671.0,16670.0,0.00277503]
[1672777471864,3.10250132,16671.0,16670.0,0.00265577]
[1672777472376,3.04267766,16671.0,16670.0,0.00265577]
[1672777474063,3.64252166,16671.0,16670.0,0.00265577]
[1672777476538,2.50265732,16671.0,16670.0,0.00265577]
[1672777476793,3.04275559,16671.0,16670.0,0.00265577]
[1672777477050,2.50265732,16671.0,16670.0,0.00265577]
[1672777477293,3.10250132,16671.0,16670.0,0.00265577]
[1672777478001,2.50265732,16671.0,16670.0,0.00265577]
[1672777478246,3.10250132,16671.0,16670.0,0.00265577]
[1672777478499,2.50265732,16671.0,16670.0,0.00265577]
[1672777479814,3.10250132,16671.0,16670.0,0.00265577]
[1672777482606,3.71010251,16671.0,16670.0,0.00265577]
[1672777484268,3.10250132,16671.0,16670.0,0.00265577]
[1672777484729,3.71010251,16671.0,16670.0,0.00265577]
[1672777485040,4.32659651,16671.0,16670.0,0.00265577]
[1672777486347,3.71010251,16671.0,16670.0,0.00265577]
[1672777486596,4.32659651,16671.0,16670.0,0.00265577]
[1672777487367,3.71010251,16671.0,16670.0,0.00265577]
[1672777487921,4.32659651,16671.0,16670.0,0.00265577]
[1672777488430,3.71010251,16671.0,16670.0,0.00265577]
[1672777488690,4.32659651,16671.0,16670.0,0.00265577]
[1672777490010,3.71010251,16671.0,16670.0,0.00265577]
[1672777491257,4.32659651,16671.0,16670.0,0.00265577]
[1672777491753,3.71010251,16671.0,16670.0,0.00265577]
[1672777495700,3.71010251,16671.0,16670.0,0.00257467]
[1672777501205,3.10250132,16671.0,16670.0,0.00257467]
[1672777501455,2.50265732,16671.0,16670.0,0.04989017]
[1672777504724,2.50265732,16671.0,16670.0,0.00257467]
[1672777505508,3.10250132,16671.0,16670.0,0.00257467]
[1672777505756,2.50265732,16671.0,16670.0,0.00257467]
[1672777506261,3.10250132,16671.0,16670.0,0.00257467]
[1672777506996,2.50265732,16671.0,16670.0,0.00257467]
[1672777507238,3.10250132,16671.0,16670.0,0.00257467]
[1672777507758,2.50265732,16671.0,16670.0,0.00257467]
[1672777509005,3.10250132,16671.0,16670.0,0.00257467]
[1672777509518,3.71899532,16671.0,16670.0,0.00257467]
[1672777510069,3.10250132,16671.0,16670.0,0.00257467]
[1672777510327,3.71010251,16671.0,16670.0,0.00257467]
[1672777510545,2.50265732,16671.0,16670.0,0.00257467]
[1672777511028,3.10250132,16671.0,16670.0,0.00257467]
[1672777513590,2.50265732,16671.0,16670.0,0.00257467]
[1672777514346,3.10250132,16671.0,16670.0,0.00257467]
[1672777515865,2.50265732,16671.0,16670.0,0.00257467]
[1672777516395,2.50265732,16671.0,16670.0,0.00232267]
[1672777516669,2.18980185,16671.0,16670.0,0.24153456]
[1672777516893,2.29467643,16671.0,16670.0,0.23114456]
[1672777520584,2.28603543,16671.0,16670.0,0.23150532]
[1672777520713,1.74578959,16671.0,16670.0,0.23150532]
[1672777522030,2.28603543,16671.0,16670.0,0.23150532]
[1672777522284,2.28603543,16671.0,16670.0,0.23114456]
[1672777522781,1.74578959,16671.0,16670.0,0.23114456]
[1672777525823,1.74578959,16671.0,16670.0,0.56880159]
[1672777526075,1.17494108,16671.0,16670.0,0.95275359]
[1672777526335,0.57509708,16671.0,16670.0,0.95275359]
[1672777527098,1.17494108,16671.0,16670.0,0.95275359]
[1672777527345,1.32487801,16671.0,16670.0,0.61509656]
[1672777528639,1.32487801,16671.0,16670.0,0.41094456]
[1672777528849,1.32487801,16671.0,16670.0,0.61509656]
[1672777530369,0.72503401,16671.0,16670.0,0.61509656]
[1672777531594,1.32487801,16671.0,16670.0,0.61509656]
[1672777533335,0.72503401,16671.0,16670.0,0.56607467]
[1672777533576,1.70065111,16671.0,16670.0,0.56607467]
[1672777533833,1.70065111,16671.0,16670.0,0.36192267]
[1672777534091,2.30049511,16671.0,16670.0,0.36192267]
[1672777535868,2.90033911,16671.0,16670.0,0.18212267]
[1672777536890,2.36009327,16671.0,16670.0,0.18212267]
[1672777537632,2.30021119,16671.0,16670.0,0.18212267]
[1672777539757,2.90005519,16671.0,16670.0,0.18212267]
[1672777542613,2.90005519,16671.0,16670.0,0.18203127]
[1672777543624,2.90005519,16671.0,16670.0,0.23002792]
[1672777543876,1.86483993,16671.0,16670.0,0.23002792]
[1672777544130,0.72503401,16671.0,16670.0,0.43417992]
[1672777545906,0.12519001,16671.0,16670.0,0.43417992]
[1672777546403,0.72503401,16671.0,16670.0,0.43417992]
[1672777547393,1.32487801,16671.0,16670.0,0.43417992]
[1672777548640,0.72503401,16671.0,16670.0,0.43417992]
[1672777548887,0.72503401,16671.0,16670.0,0.4336621]
[1672777549644,0.72503401,16671.0,16670.0,0.43411906]
[1672777550404,0.72503401,16671.0,16670.0,0.22996706]
[1672777550894,1.26499593,16671.0,16670.0,0.22996706]
[1672777551437,0.72503401,16671.0,16670.0,0.22996706]
[1672777551677,1.32487801,16671.0,16670.0,0.22996706]
[1672777551921,1.86483993,16671.0,16670.0,0.22996706]
[1672777552173,1.26499593,16671.0,16670.0,0.22996706]
[1672777552417,0.72503401,16671.0,16670.0,0.43411906]
[1672777552918,0.72503401,16671.0,16670.0,0.22996706]
[1672777555233,1.86483993,16671.0,16670.0,0.22996706]
[1672777555485,1.26499593,16671.0,16670.0,0.22996706]
[1672777555743,2.30021119,16671.0,16670.0,0.22996706]
[1672777556235,1.70036719,16671.0,16670.0,0.22996706]
[1672777557303,2.30021119,16671.0,16670.0,0.22996706]
[1672777559669,1.86483993,16671.0,16670.0,0.22996706]
[1672777560208,1.26499593,16671.0,16670.0,0.22996706]
[1672777561695,0.72503401,16671.0,16670.0,0.22996706]
[1672777563182,0.12519001,16671.0,16670.0,0.22996706]
[1672777563428,0.12519001,16671.0,16670.0,0.55964956]
[1672777564422,0.72503401,16671.0,16670.0,0.22996706]
[1672777564662,1.32487801,16671.0,16670.0,0.22996706]
[1672777565946,1.86483993,16671.0,16670.0,0.22996706]
[1672777566194,1.32487801,16671.0,16670.0,0.22996706]
[1672777566689,1.86483993,16671.0,16670.0,0.22996706]
[1672777567187,0.72503401,16671.0,16670.0,0.22996706]
[1672777567448,0.72503401,16671.0,16670.0,0.22988353]
[1672777570012,0.57521516,16671.0,16670.0,3.04393413]
[1672777570265,0.39519148,16671.0,16670.0,5.83530613]
[1672777570521,0.12519001,16671.0,16670.0,5.85328773]
[1672777570779,0.12519001,16671.0,16670.0,6.15328773]
[1672777571540,0.12512022,16671.0,16670.0,6.15328773]
[1672777571794,0.12512022,16671.0,16670.0,6.55328773]
[1672777572050,0.12512022,16671.0,16670.0,9.86693374]
[1672777572812,0.12512022,16671.0,16670.0,8.7119317]
[1672777573563,0.180005,16675.0,16670.0,9.86590586]
[1672777573825,0.180005,16675.0,16674.0,1.0393]
[1672777574087,0.180005,16675.0,16674.0,3.47797326]
[1672777574332,0.180005,16675.0,16674.0,4.17797326]
[1672777574572,0.180005,16675.0,16674.0,4.17841464]
[1672777574813,0.79352889,16676.0,16674.0,4.17841464]
[1672777575066,1.21363106,16676.0,16675.0,0.79327126]
[1672777575311,1.21363106,16676.0,16675.0,2.19674426]
[1672777575795,0.87010864,16676.0,16675.0,2.19674426]
[1672777576052,0.90310864,16676.0,16675.0,2.25321689]
[1672777576823,0.213005,16676.0,16675.0,2.25321689]
[1672777577582,0.033,16676.0,16675.0,2.25357755]
[1672777578574,0.033,16676.0,16675.0,2.25399098]
[1672777580840,0.033,16676.0,16675.0,2.85369098]
[1672777583851,0.033,16676.0,16675.0,3.55369098]
[1672777584345,0.033,16676.0,16675.0,2.95399098]
[1672777585298,0.033,16676.0,16675.0,2.25399098]
[1672777586305,0.033,16676.0,16675.0,2.25589098]
[1672777589604,0.01571939,16676.0,16675.0,2.25589098]
[1672777599196,0.01571939,16676.0,16675.0,2.85559098]
[1672777599442,0.01571939,16676.0,16675.0,2.25589098]
[1672777600237,0.01571939,16676.0,16675.0,2.95589098]
[1672777600717,0.01564902,16676.0,16675.0,2.95589098]
[1672777605949,0.01564902,16676.0,16675.0,2.25589098]
[1672777606716,0.19565402,16676.0,16675.0,1.65619098]
[1672777607466,0.19565402,16676.0,16675.0,1.05649098]
[1672777608633,0.19565402,16676.0,16675.0,0.85241798]
[1672777608885,0.64566255,16676.0,16675.0,0.85241798]
[1672777610077,0.64566255,16676.0,16675.0,1.05648898]
[1672777610342,1.0956877,16676.0,16675.0,0.85241798]
[1672777610590,1.0956877,16676.0,16675.0,1.05648898]
[1672777610842,0.82568623,16676.0,16675.0,1.05648898]
[1672777611094,0.82568623,16676.0,16675.0,1.65618898]
[1672777611368,0.82568623,16676.0,16675.0,1.45211798]
[1672777611696,0.46567417,16676.0,16675.0,0.85241798]
[1672777612112,0.82563034,16676.0,16675.0,0.85241798]
[1672777612377,0.82563024,16676.0,16675.0,0.85241798]
[1672777612614,0.46567417,16676.0,16675.0,0.85241798]
[1672777613101,0.4656582,16676.0,16675.0,0.85241798]
[1672777613348,0.46565878,16676.0,16675.0,0.85241798]
[1672777613604,0.46565878,16676.0,16675.0,1.05648898]
[1672777613870,0.01564902,16676.0,16675.0,1.05648898]
[1672777614636,1.21497702,16676.0,16675.0,0.18531343]
[1672777614860,1.75493894,16676.0,16675.0,0.18531343]
[1672777615139,2.41217909,16676.0,16675.0,0.18531343]
[1672777615361,1.98519598,16676.0,16675.0,0.00541343]
[1672777615663,2.52518777,16676.0,16675.0,0.00541343]
[1672777616417,2.50953875,16676.0,16675.0,0.00041343]
[1672777616672,2.64153875,16676.0,16675.0,0.00041343]
[1672777618434,2.10154696,16676.0,16675.0,0.00041343]
[1672777618671,2.64119665,16676.0,16675.0,0.00041343]
[1672777619664,3.24086065,16676.0,16673.0,0.66628079]
[1672777619924,1.37727867,16675.0,16673.0,0.05130953]
[1672777620164,1.01720977,16674.0,16673.0,0.00043744]
[1672777620416,1.34278849,16674.0,16673.0,0.00043744]
[1672777620666,1.94252449,16674.0,16673.0,0.00243744]
[1672777620928,1.94252449,16674.0,16673.0,0.00043744]
[1672777621172,1.94952449,16674.0,16673.0,0.01643744]
[1672777622223,1.94252449,16674.0,16673.0,0.00043744]
[1672777622469,2.06552449,16674.0,16673.0,0.00043744]
[1672777622729,2.5150727,16674.0,16673.0,0.00043744]
[1672777622979,1.94252449,16674.0,16673.0,0.00033969]
[1672777623244,2.34252449,16674.0,16673.0,0.00033969]
[1672777623490,2.34252449,16674.0,16673.0,0.00043497]
[1672777623997,2.36989641,16674.0,16673.0,0.00043497]
[1672777624246,3.5260401,16674.0,16673.0,0.00043497]
[1672777624496,3.5260401,16674.0,16673.0,0.00243497]
[1672777624497,3.0325461,16674.0,16673.0,0.00243497]
[1672777624721,4.2487761,16674.0,16673.0,0.00243497]
[1672777625260,3.6252821,16674.0,16673.0,0.00243497]
[1672777625502,2.36289641,16674.0,16673.0,0.01643497]
[1672777625759,2.36289641,16674.0,16673.0,0.00043497]
[1672777626002,2.36289641,16674.0,16673.0,0.00243497]
[1672777626003,2.48589641,16674.0,16673.0,0.00243497]
[1672777627260,2.48589641,16674.0,16673.0,0.01881289]
[1672777628536,2.93499806,16674.0,16673.0,0.01881289]
[1672777629562,3.29425339,16674.0,16673.0,0.06987593]
[1672777630060,1.9514649,16674.0,16673.0,0.06987593]
[1672777630304,1.77179955,16674.0,16673.0,0.06987593]
[1672777630580,1.3517289,16674.0,16673.0,0.06987593]
[1672777630830,2.22089692,16674.0,16673.0,0.06987593]
[1672777631085,1.77179527,16674.0,16673.0,0.06987593]
[1672777631610,1.17205927,16674.0,16673.0,0.27397893]
[1672777631848,0.57203889,16674.0,16673.0,1.18803019]
[1672777632112,0.57203889,16674.0,16673.0,1.96770219]
[1672777632364,0.30260687,16674.0,16673.0,1.96770219]
[1672777633398,0.30260687,16674.0,16673.0,2.16782219]
[1672777633654,0.30260687,16674.0,16673.0,2.76997617]
[1672777633933,0.123,16674.0,16673.0,2.77847617]
[1672777639004,0.30260687,16674.0,16673.0,2.77847617]
[1672777639761,0.30260687,16674.0,16673.0,2.27847617]
[1672777643356,0.30260687,16674.0,16673.0,1.67870417]
[1672777643606,0.81209891,16674.0,16673.0,0.41131589]
[1672777643864,1.76868203,16674.0,16673.0,0.02731289]
[1672777644109,1.94835166,16674.0,16673.0,0.02731289]
[1672777644363,1.94835166,16674.0,16673.0,0.01881289]
[1672777644364,2.54422096,16674.0,16673.0,0.01881289]
[1672777644613,3.16071496,16674.0,16673.0,0.01881289]
[1672777645111,2.54422096,16674.0,16673.0,0.01881289]
[1672777645606,3.16071496,16674.0,16673.0,0.01881289]
[1672777645856,2.71161331,16674.0,16673.0,0.01881289]
[1672777646350,2.09511931,16674.0,16673.0,0.01881289]
[1672777646608,2.09511931,16674.0,16673.0,0.01872427]
[1672777647352,2.54449646,16674.0,16673.0,0.01872427]
[1672777647602,1.58937183,16674.0,16673.0,0.07391864]
[1672777647849,0.98963583,16674.0,16673.0,0.07391864]
[1672777648100,0.57237715,16674.0,16673.0,0.07391864]
[1672777648846,1.17211315,16674.0,16673.0,0.07391864]
[1672777649089,0.99012804,16674.0,16673.0,0.07391864]
[1672777649335,0.93192044,16674.0,16673.0,0.07391864]
[1672777650341,0.93191861,16674.0,16673.0,0.07391864]
[1672777650588,0.93191861,16674.0,16673.0,0.25291864]
[1672777650834,0.57237715,16674.0,16673.0,0.45702164]
[1672777651349,1.17211315,16674.0,16673.0,0.45702164]
[1672777651868,1.17211315,16674.0,16673.0,0.25291864]
[1672777652619,1.17051605,16674.0,16673.0,0.25291864]
[1672777653409,0.57078005,16674.0,16673.0,0.25291864]
[1672777653881,0.57078005,16674.0,16673.0,0.45702164]
[1672777654125,0.57078005,16674.0,16673.0,0.25291864]
[1672777654631,0.57078005,16674.0,16673.0,0.45702164]
[1672777655161,0.57078005,16674.0,16673.0,0.8923929]
[1672777656208,0.93047826,16674.0,16673.0,0.8923929]
[1672777657451,0.93047826,16674.0,16673.0,1.4921649]
[1672777657700,0.93047826,16674.0,16673.0,0.8923929]
[1672777657949,0.93047826,16674.0,16673.0,0.6882899]
[1672777658201,0.93047826,16674.0,16673.0,0.8923929]
[1672777660383,0.93047826,16674.0,16673.0,0.6882899]
[1672777660646,0.93047826,16674.0,16673.0,0.8923929]
[1672777663162,0.93047826,16674.0,16673.0,0.6882899]
[1672777663635,0.93047826,16674.0,16673.0,0.8923929]
[1672777664065,0.93047826,16674.0,16673.0,2.0919369]
[1672777665301,0.93035639,16674.0,16673.0,1.4921649]
[1672777666004,0.93035639,16674.0,16673.0,2.0919369]
[1672777667239,0.93035639,16674.0,16673.0,1.8878339]
[1672777667473,0.93035639,16674.0,16673.0,0.6882899]
[1672777667703,0.93035639,16674.0,16673.0,0.8923929]
[1672777667989,0.93046152,16674.0,16673.0,0.6882899]
[1672777668241,0.57065818,16674.0,16673.0,0.66430374]
[1672777668496,0.57065818,16674.0,16673.0,0.86840674]
[1672777670574,0.57065818,16674.0,16673.0,0.85804918]
[1672777670822,0.57065818,16674.0,16673.0,0.65394618]
[1672777671328,0.57065818,16674.0,16673.0,0.65394162]
[1672777671577,0.57065818,16674.0,16673.0,0.25291864]
[1672777671826,0.12128103,16674.0,16673.0,0.25291864]
[1672777672086,0.57113146,16674.0,16673.0,0.25291864]
[1672777672590,0.57113146,16674.0,16673.0,0.65400948]
[1672777673850,0.57113146,16674.0,16673.0,0.25291864]
[1672777674357,0.12128103,16674.0,16673.0,0.25291864]
[1672777674839,0.57116015,16674.0,16673.0,0.25291864]
[1672777675076,0.12128103,16674.0,16673.0,0.65402868]
[1672777675580,0.12128103,16674.0,16673.0,0.85813168]
[1672777675833,0.57115794,16674.0,16673.0,0.85813168]
[1672777676089,0.57115756,16674.0,16673.0,0.85813168]
[1672777676852,0.57115756,16674.0,16673.0,0.65402868]
[1672777677103,0.12128103,16674.0,16673.0,0.65402868]
[1672777677372,0.12128103,16674.0,16673.0,0.85813168]
[1672777677624,0.12128103,16674.0,16673.0,0.65402868]
[1672777678435,0.12128103,16674.0,16673.0,0.25291864]
[1672777679468,0.12128103,16674.0,16673.0,0.65405672]
[1672777679731,0.12128103,16674.0,16673.0,0.25291864]
[1672777681233,0.12128103,16674.0,16673.0,0.45702164]
[1672777681460,0.12128103,16674.0,16673.0,0.85815639]
[1672777681681,0.72101703,16674.0,16673.0,0.65405339]
[1672777681933,0.72101703,16674.0,16673.0,0.25291864]
[1672777683699,0.12128103,16674.0,16673.0,0.25291864]
[1672777684209,0.12128103,16674.0,16673.0,0.85824631]
[1672777685701,0.12128103,16674.0,16673.0,0.65414331]
[1672777685944,0.12128103,16674.0,16673.0,0.25291864]
[1672777686438,0.66093072,16674.0,16673.0,0.25291864]
[1672777686665,0.66093072,16674.0,16673.0,0.25282672]
[1672777687153,1.26066672,16674.0,16673.0,0.45692972]
[1672777687399,1.26066672,16674.0,16673.0,0.25282672]
[1672777687719,0.72101703,16674.0,16673.0,0.25298487]
[1672777687960,0.72101703,16674.0,16673.0,0.45708787]
[1672777688209,2.29577398,16674.0,16673.0,0.1977905]
[1672777688716,2.91226798,16674.0,16673.0,0.1977905]
[1672777688993,1.69603798,16674.0,16673.0,0.1977905]
[1672777689232,1.09630198,16674.0,16673.0,0.1977905]
[1672777689475,1.09630198,16674.0,16673.0,0.24627806]
[1672777689743,0.66093072,16674.0,16673.0,0.24627806]
[1672777690035,0.66093072,16674.0,16673.0,0.6475555]
[1672777690248,0.12128103,16674.0,16673.0,1.1475555]
[1672777690496,0.57142503,16674.0,16673.0,1.1475555]
[1672777690758,0.57142503,16674.0,16673.0,1.3516585]
[1672777690990,0.12128103,16674.0,16673.0,1.3516585]
[1672777691245,0.57142413,16674.0,16673.0,1.1475555]
[1672777691981,0.12128103,16674.0,16673.0,1.1475555]
[1672777692236,0.12128103,16674.0,16673.0,1.3516585]
[1672777695780,0.12128103,16674.0,16673.0,1.9514305]
[1672777695781,0.57142944,16674.0,16673.0,1.9514305]
[1672777696030,0.12128103,16674.0,16673.0,1.9514305]
[1672777696546,0.57142382,16674.0,16673.0,1.9514305]
[1672777696767,0.57142382,16674.0,16673.0,1.4514305]
[1672777697011,0.12128103,16674.0,16673.0,0.6475555]
[1672777697265,0.12128103,16674.0,16673.0,0.8516585]
[1672777697513,0.12128103,16674.0,16673.0,0.6475555]
[1672777698021,0.12128103,16674.0,16673.0,0.8516585]
[1672777698269,0.12128103,16674.0,16673.0,0.6475555]
[1672777698516,0.12128103,16674.0,16673.0,0.64753768]
[1672777700833,0.12128103,16674.0,16673.0,0.85164068]
[1672777701592,0.12128103,16674.0,16673.0,0.64753768]
[1672777701839,0.12128103,16674.0,16673.0,1.24730968]
[1672777702057,0.12128103,16674.0,16673.0,0.85164068]
[1672777702858,0.12128103,16674.0,16673.0,0.64753768]
[1672777703832,0.12128103,16674.0,16673.0,0.85164068]
[1672777704332,0.12128103,16674.0,16673.0,0.64753768]
[1672777705348,0.12128103,16674.0,16673.0,1.24730968]
[1672777705596,0.12128103,16674.0,16673.0,0.64753768]
[1672777705809,0.12128103,16674.0,16673.0,0.60838803]
[1672777705985,0.12128103,16674.0,16673.0,1.20816003]
[1672777707324,0.12128103,16674.0,16673.0,1.41215302]
[1672777707549,0.12128103,16674.0,16673.0,1.41223146]
[1672777708548,0.12128103,16674.0,16673.0,0.81245946]
[1672777708795,0.12128103,16674.0,16673.0,1.41223146]
[1672777709296,0.11628103,16674.0,16673.0,1.41223146]
[1672777709537,0.11628103,16674.0,16673.0,0.81245946]
[1672777709782,0.11628103,16674.0,16673.0,1.20812846]
[1672777710009,0.11628103,16674.0,16673.0,0.81245946]
[1672777710540,0.11628103,16674.0,16673.0,0.60835646]
[1672777710783,0.11628103,16674.0,16673.0,0.81245946]
[1672777711039,0.11628103,16674.0,16673.0,0.60835646]
[1672777712747,0.55165229,16674.0,16673.0,0.19775893]
[1672777713002,2.66455038,16674.0,16673.0,0.19775893]
[1672777713255,2.22917912,16674.0,16673.0,0.19775893]
[1672777713498,3.28104438,16674.0,16673.0,0.19775893]
[1672777713749,3.88078038,16674.0,16673.0,0.19775893]
[1672777714029,3.32498232,16674.0,16673.0,0.01875893]
[1672777714251,3.76150261,16674.0,16673.0,0.01875893]
[1672777714493,3.16176661,16674.0,16673.0,0.01875893]
[1672777715248,3.76150261,16674.0,16673.0,0.01875893]
[1672777715495,2.54527261,16674.0,16673.0,0.01875893]
[1672777715749,2.72639535,16674.0,16673.0,0.01875893]
[1672777716235,2.10990135,16674.0,16673.0,0.01875893]
[1672777716500,2.72639535,16674.0,16673.0,0.01875893]
[1672777716753,2.87645389,16674.0,16673.0,0.01875893]
[1672777717006,3.04171044,16674.0,16673.0,0.01875893]
[1672777717251,3.58161325,16674.0,16673.0,0.01875893]
[1672777717680,2.96511925,16674.0,16673.0,0.01875893]
[1672777718008,3.02495244,16674.0,16673.0,0.01875893]
[1672777718261,3.04171044,16674.0,16673.0,0.01875893]
[1672777718514,3.58159603,16674.0,16673.0,0.01875893]
[1672777720536,2.96510203,16674.0,16673.0,0.01875893]
[1672777725611,3.58159603,16674.0,16673.0,0.01875893]
[1672777726118,2.96510203,16674.0,16673.0,0.01875893]
[1672777726628,2.42521644,16674.0,16673.0,0.01875893]
[1672777727384,3.56469208,16674.0,16673.0,0.01875893]
[1672777727635,2.96495608,16674.0,16673.0,0.01875893]
[1672777729808,1.45170404,16674.0,16673.0,0.06964746]
[1672777730056,0.85196804,16674.0,16673.0,0.06964746]
[1672777730328,0.53665295,16674.0,16673.0,0.06964746]
[1672777730842,0.53665295,16674.0,16673.0,0.06957556]
[1672777731638,1.13638895,16674.0,16673.0,0.06957556]
[1672777731893,0.97184055,16674.0,16673.0,0.06957556]
[1672777732151,0.97184055,16674.0,16673.0,0.01868703]
[1672777732404,1.57157655,16674.0,16673.0,0.01868703]
[1672777732927,2.17131255,16674.0,16673.0,0.01868703]
[1672777734159,2.71105219,16674.0,16673.0,0.01868703]
[1672777740185,2.71105219,16674.0,16673.0,0.19858703]
[1672777743477,2.11131619,16674.0,16673.0,0.19858703]
[1672777744194,2.71105219,16674.0,16673.0,0.19858703]
[1672777750901,2.71105219,16674.0,16673.0,0.19847674]
[1672777751409,2.17131255,16674.0,16673.0,0.19847674]
[1672777751642,2.71148867,16674.0,16673.0,0.1986185]
[1672777751889,2.17131255,16674.0,16673.0,0.1986185]
[1672777752672,2.77104855,16674.0,16673.0,0.1986185]